Workbook

Sheet Proposed Pricing schedule
A1: Bidders must provide the NHLS with costing information for a 5 years’ contract duration. The bid price quoted must be inclusive as per the scope of work.
A2: Terms and Conditions of pricing are as follows:
A3: a) Bidder must complete the pricing as per tables below.
A4: b) Prices must be provided in South African Rand (R).
A5: c) Line Prices are all VAT EXCLUSIVE and TOTAL PRICE is VAT INCLUSIVE.
A6: d) Bidders who fail to price according to the costing template provided will be disqualified.
A7: e) NHLS is not bound by the below quantities as this contract is for procurement of the consumables on an as and when required basis.
A8: f) NHLS will appoint based on the rates therefore the total bid offer is for comparison purposes only.
A10: PRICING SCHEDULE SECTION A: INSTRUMENT PLACEMENT COSTS
A12: Item Description | C12: Quantity Year 1 | D12: Monthly Rate | E12: Total Cost | F12: Quantity Year 2 | G12: Monthly Rate | H12: Total Cost | I12: Quantity Year 3 | J12: Monthly Unit Rate | K12: Total Cost | L12: Quantity Year 4 | M12: Monthly Rate | N12: Total Cost | O12: Quantity Year 5 | P12: Monthly Rate | Q12: Total Cost | R12: Total Annual Cost
D13: in | E13: Year 1 | G13: in | H13: Year 2 | J13: in | K13: Year 3 | M13: in | N13: Year 4 | P13: Year 5 | Q13: Year 5 | R13: Year 1 - 5
B14: Unit of measure | D14: Year 1 | E14: (VAT Excl.) | G14: Year 2 | H14: (VAT Excl.) | J14: Year 3 | K14: (VAT Excl.) | M14: Year 4 | N14: (VAT Excl.) | P14: in | Q14: (VAT Excl.) | R14: (VAT Excl.)
D15: (VAT Excl.) | G15: (VAT Excl.) | J15: (VAT Excl.) | M15: (VAT Excl.) | P15: (VAT Excl.)
A16: Small Laboratory Haematology Analyser Placement | B16: Monthly | C16: 29 | E16: =D16*12 -> R0.00 | F16: 29 | H16: =G16*12 -> R0.00 | I16: 29 | K16: =J16*12 -> R0.00 | L16: 29 | N16: =M16*12 -> R0.00 | O16: 29 | Q16: =P16*12 -> R0.00 | R16: =E16+H16+K16+N16+Q16 -> R0.00
A17: Subtotal (VAT Excl.) | R17: =SUM(R16:R16) -> R0.00
A18: VAT | R18: =R17*1.15 -> R0.00
A19: Subtotal (VAT Incl.) | R19: =R17+R18 -> R0.00
A21: SECTION B: SMALL LABORATORY COSTING (29 ANALYSERS)
A22: B1. Reagents (Cost of reagents for each test)
A23: Item Description | C23: Estimated Quantity Year 1 | D23: Unit Rate | E23: Total Cost | F23: Estimated Quantity Year 2 | G23: Unit Rate | H23: Total Cost | I23: Estimated Quantity Year 3 | J23: Unit Rate | K23: Total Cost | L23: Estimated Quantity Year 4 | M23: Unit Rate | N23: Total Cost | O23: Estimated Quantity Year 5 | P23: Unit Rate | Q23: Total Cost | R23: Total Annual Cost
D24: in | E24: Year 1 | G24: in | H24: Year 2 | J24: in | K24: Year 3 | M24: in | N24: Year 4 | P24: Year 5 | Q24: Year 5 | R24: Year 1 - 5
B25: Unit of measure | D25: Year 1 | E25: (VAT Excl.) | G25: Year 2 | H25: (VAT Excl.) | J25: Year 3 | K25: (VAT Excl.) | M25: Year 4 | N25: (VAT Excl.) | P25: in | Q25: (VAT Excl.) | R25: (VAT Excl.)
D26: (VAT Excl.) | G26: (VAT Excl.) | J26: (VAT Excl.) | M26: (VAT Excl.) | P26: (VAT Excl.)
A27: Cost of all reagents required per test | B27: Per test | E27: =C27*D27 -> R0.00 | H27: =F27*G27 -> R0.00 | K27: =I27*J27 -> R0.00 | N27: =L27*M27 -> R0.00 | Q27: =O27*P27 -> R0.00 | R27: =E27+H27+K27+N27+Q27 -> R0.00
A28: Subtotal (VAT Excl.) | R28: =SUM(R26:R27) -> R0.00
Q29: VAT | R29: =R28*1.15 -> R0.00
A30: Subtotal (VAT Incl.) | R30: =R28+R29 -> R0.00
A31: B1.a) Reagents (List of all reagents)
A32: Reagent Description | B32: Material No. | C32: Pack Size | D32: Unit of Measure | E32: Unit Price (Exc VAT) Year 1 | F32: Unit Price (Exc VAT) Year 2 | G32: Unit Price (Exc VAT) Year 3 | H32: Unit Price (Exc VAT) Year 4 | I32: Unit Price (Exc VAT) Year 5
E33: R | F33: R | G33: R | H33: R | I33: R
E34: R | F34: R | G34: R | H34: R | I34: R
E35: R | F35: R | G35: R | H35: R | I35: R
E36: R | F36: R | G36: R | H36: R | I36: R
E37: R | F37: R | G37: R | H37: R | I37: R
E38: R | F38: R | G38: R | H38: R | I38: R
E39: R | F39: R | G39: R | H39: R | I39: R
E40: R | F40: R | G40: R | H40: R | I40: R
E41: R | F41: R | G41: R | H41: R | I41: R
E42: R | F42: R | G42: R | H42: R | I42: R
E43: =SUM(E33:E42) -> 0 | F43: =SUM(F33:F42) -> 0 | G43: =SUM(G33:G42) -> 0 | H43: 0 | I43: 0
A45: Pricing Schedule B2: Quality Control Materials (List of all QC)
A46: Item Description | C46: Estimated Quantity Year 1 | D46: Unit Rate | E46: Total Cost | F46: Estimated Quantity Year 2 | G46: Unit Rate | H46: Total Cost | I46: Estimated Quantity Year 3 | J46: Unit Rate | K46: Total Cost | L46: Estimated Quantity Year 4 | M46: Unit Rate | N46: Total Cost | O46: Estimated Quantity Year 5 | P46: Unit Rate | Q46: Total Cost | R46: Total Annual Cost
D47: in | E47: Year 1 | G47: in | H47: Year 2 | J47: in | K47: Year 3 | M47: in | N47: Year 4 | P47: Year 5 | Q47: Year 5 | R47: Year 1 - 5
B48: Unit of measure | D48: Year 1 | E48: (VAT Excl.) | G48: Year 2 | H48: (VAT Excl.) | J48: Year 3 | K48: (VAT Excl.) | M48: Year 4 | N48: (VAT Excl.) | P48: in | Q48: (VAT Excl.) | R48: (VAT Excl.)
D49: (VAT Excl.) | G49: (VAT Excl.) | J49: (VAT Excl.) | M49: (VAT Excl.) | P49: (VAT Excl.)
A50: Normal Control | B50: each | E50: =C50*D50 -> R0.00 | H50: =F50*G50 -> R0.00 | K50: =I50*J50 -> R0.00 | N50: =L50*M50 -> R0.00 | Q50: =O50*P50 -> R0.00 | R50: =E50+H50+K50+N50+Q50 -> R0.00
A51: Low Control | B51: each | E51: =C51*D51 -> R0.00 | H51: =F51*G51 -> R0.00 | K51: =I51*J51 -> R0.00 | N51: =L51*M51 -> R0.00 | Q51: =O51*P51 -> R0.00 | R51: =E51+H51+K51+N51+Q51 -> R0.00
A52: High Control | B52: each | E52: =C52*D52 -> R0.00 | H52: R0.00 | K52: R0.00 | N52: R0.00 | Q52: R0.00 | R52: R0.00
A53: Subtotal (VAT Excl.) | R53: =SUM(R50:R52) -> R0.00
Q54: VAT | R54: =R53*1.15 -> R0.00
A55: Subtotal (VAT Incl.) | R55: =R53+R54 -> R0.00
A56: Pricing Schedule B2a: Quality Control Materials price breakdown
A57: Item Description | B57: Catalogue No. | C57: Pack size | E57: Unit Price (ZAR)
A62: Pricing Schedule B3: Calibrators (List of all calibrators)
A63: Item Description | C63: Estimated Quantity Year 1 | D63: Unit Rate | E63: Total Cost | F63: Estimated Quantity Year 2 | G63: Unit Rate | H63: Total Cost | I63: Estimated Quantity Year 3 | J63: Unit Rate | K63: Total Cost | L63: Estimated Quantity Year 4 | M63: Unit Rate | N63: Total Cost | O63: Estimated Quantity Year 5 | P63: Unit Rate | Q63: Total Cost | R63: Total Annual Cost
D64: in | E64: Year 1 | G64: in | H64: Year 2 | J64: in | K64: Year 3 | M64: in | N64: Year 4 | P64: Year 5 | Q64: Year 5 | R64: Year 1 - 5
B65: Unit of measure | D65: Year 1 | E65: (VAT Excl.) | G65: Year 2 | H65: (VAT Excl.) | J65: Year 3 | K65: (VAT Excl.) | M65: Year 4 | N65: (VAT Excl.) | P65: in | Q65: (VAT Excl.) | R65: (VAT Excl.)
D66: (VAT Excl.) | G66: (VAT Excl.) | J66: (VAT Excl.) | M66: (VAT Excl.) | P66: (VAT Excl.)
B67: Each | E67: =C67*D67 -> R0.00 | H67: =F67*G67 -> R0.00 | K67: =I67*J67 -> R0.00 | N67: =L67*M67 -> R0.00 | Q67: =O67*P67 -> R0.00 | R67: =E67+H67+K67+N67+Q67 -> R0.00
B68: Each | E68: =C68*D68 -> R0.00 | H68: =F68*G68 -> R0.00 | K68: =I68*J68 -> R0.00 | N68: =L68*M68 -> R0.00 | Q68: =O68*P68 -> R0.00 | R68: =E68+H68+K68+N68+Q68 -> R0.00
B69: Each | E69: =C69*D69 -> R0.00 | H69: R0.00 | K69: R0.00 | N69: R0.00 | Q69: R0.00 | R69: R0.00
A70: Subtotal (VAT Excl.) | R70: =SUM(R67:R69) -> R0.00
Q71: VAT | R71: =R70*0.15 -> R0.00
A72: Subtotal (VAT Incl.) | R72: =R70+R71 -> R0.00
A73: Pricing Schedule B4: Consumables (List of all consumables)
A74: Item Description | C74: Estimated Quantity Year 1 | D74: Unit Rate | E74: Total Cost | F74: Estimated Quantity Year 2 | G74: Unit Rate | H74: Total Cost | I74: Estimated Quantity Year 3 | J74: Unit Rate | K74: Total Cost | L74: Estimated Quantity Year 4 | M74: Unit Rate | N74: Total Cost | O74: Estimated Quantity Year 5 | P74: Unit Rate | Q74: Total Cost | R74: Total Annual Cost
D75: in | E75: Year 1 | G75: in | H75: Year 2 | J75: in | K75: Year 3 | M75: in | N75: Year 4 | P75: Year 5 | Q75: Year 5 | R75: Year 1 - 5
B76: Unit of measure | D76: Year 1 | E76: (VAT Excl.) | G76: Year 2 | H76: (VAT Excl.) | J76: Year 3 | K76: (VAT Excl.) | M76: Year 4 | N76: (VAT Excl.) | P76: in | Q76: (VAT Excl.) | R76: (VAT Excl.)
D77: (VAT Excl.) | G77: (VAT Excl.) | J77: (VAT Excl.) | M77: (VAT Excl.) | P77: (VAT Excl.)
B78: Per test | E78: =C78*D78 -> R0.00 | H78: =F78*G78 -> R0.00 | K78: =I78*J78 -> R0.00 | N78: =L78*M78 -> R0.00 | Q78: =O78*P78 -> R0.00 | R78: =E78+H78+K78+N78+Q78 -> R0.00
E79: =C79*D79 -> R0.00 | H79: =F79*G79 -> R0.00 | K79: =I79*J79 -> R0.00 | N79: =L79*M79 -> R0.00 | Q79: =O79*P79 -> R0.00 | R79: =E79+H79+K79+N79+Q79 -> R0.00
A83: Subtotal (VAT Excl.) | R83: =SUM(R78:R82) -> R0.00
Q84: VAT | R84: =R83*0.15 -> R0.00
A85: Subtotal (VAT Incl.) | R85: =R83+R84 -> R0.00
A86: Pricing Schedule B5: Cost per Reportable Result
A87: Item Description | C87: Estimated Quantity Year 1 | D87: Unit Rate | E87: Total Cost | F87: Estimated Quantity Year 2 | G87: Unit Rate | H87: Total Cost | I87: Estimated Quantity Year 3 | J87: Unit Rate | K87: Total Cost | L87: Estimated Quantity Year 4 | M87: Unit Rate | N87: Total Cost | O87: Estimated Quantity Year 5 | P87: Unit Rate | Q87: Total Cost | R87: Total Annual Cost
D88: in | E88: Year 1 | G88: in | H88: Year 2 | J88: in | K88: Year 3 | M88: in | N88: Year 4 | P88: Year 5 | Q88: Year 5 | R88: Year 1 - 5
B89: Unit of measure | D89: Year 1 | E89: (VAT Excl.) | G89: Year 2 | H89: (VAT Excl.) | J89: Year 3 | K89: (VAT Excl.) | M89: Year 4 | N89: (VAT Excl.) | P89: in | Q89: (VAT Excl.) | R89: (VAT Excl.)
D90: (VAT Excl.) | G90: (VAT Excl.) | J90: (VAT Excl.) | M90: (VAT Excl.) | P90: (VAT Excl.)
A91: Full Blood Count (FBC) | B91: Per result
A92: Differential Count | B92: Per result
A93: Reticulocyte Count | B93: Per result
A94: Heamoglobin | B94: Per result
A95: Platelet Count | B95: Per result
A96: White Blood Cell Count | B96: Per result
A97: Subtotal (VAT Excl.) | R97: =SUM(R92:R96) -> R0.00
Q98: VAT | R98: =R97*0.15 -> R0.00
A99: Subtotal (VAT Incl.) | R99: =R97+R98 -> R0.00
A100: Pricing Schedule B6: Service and maintenace costs (Stiplulate the required service interval e.g semi annually/annually)
A101: Item Description | C101: Number of Service Intervals Year 1 | D101: Unit Rate | E101: Total Cost | F101: Number of Service Intervals Year 2 | G101: Unit Rate | H101: Total Cost | I101: Number of Service Intervals Year 3 | J101: Unit Rate | K101: Total Cost | L101: Number of Service Intervals Year 4 | M101: Unit Rate | N101: Total Cost | O101: Number of Service Intervals Year 5 | P101: Unit Rate | Q101: Total Cost | R101: Total Annual Cost
D102: in | E102: Year 1 | G102: in | H102: Year 2 | J102: in | K102: Year 3 | M102: in | N102: Year 4 | P102: Year 5 | Q102: Year 5 | R102: Year 1 - 5
B103: Unit of measure | D103: Year 1 | E103: (VAT Excl.) | G103: Year 2 | H103: (VAT Excl.) | J103: Year 3 | K103: (VAT Excl.) | M103: Year 4 | N103: (VAT Excl.) | P103: in | Q103: (VAT Excl.) | R103: (VAT Excl.)
D104: (VAT Excl.) | G104: (VAT Excl.) | J104: (VAT Excl.) | M104: (VAT Excl.) | P104: (VAT Excl.)
A105: Comprehensive preventative maintenance contract | B105: Each | E105: =C105*D105 -> R0.00 | H105: =F105*G105 -> R0.00 | K105: =I105*J105 -> R0.00 | N105: =L105*M105 -> R0.00 | Q105: =O105*P105 -> R0.00 | R105: =E105+H105+K105+N105+Q105 -> R0.00
A106: Corrective maintenance and breakdown support | B106: Each | E106: =C106*D106 -> R0.00 | H106: =F106*G106 -> R0.00 | K106: =I106*J106 -> R0.00 | N106: =L106*M106 -> R0.00 | Q106: =O106*P106 -> R0.00 | R106: =E106+H106+K106+N106+Q106 -> R0.00
A107: Subtotal (VAT Excl.) | R107: =SUM(R105:R106) -> R0.00
Q108: VAT | R108: =R107*0.15 -> R0.00
A109: Total Price (VAT Incl.) | R109: =R107+R108 -> R0.00
A111: SECTION C: MEDIUM LABORATORY COSTING (5 ANALYSERS)
A112: C1. Reagents (Cost of reagents for each test)
A113: Item Description | C113: Estimated Quantity Year 1 | D113: Unit Rate | E113: Total Cost | F113: Estimated Quantity Year 2 | G113: Unit Rate | H113: Total Cost | I113: Estimated Quantity Year 3 | J113: Unit Rate | K113: Total Cost | L113: Estimated Quantity Year 4 | M113: Unit Rate | N113: Total Cost | O113: Estimated Quantity Year 5 | P113: Unit Rate | Q113: Total Cost | R113: Total Annual Cost
D114: in | E114: Year 1 | G114: in | H114: Year 2 | J114: in | K114: Year 3 | M114: in | N114: Year 4 | P114: Year 5 | Q114: Year 5 | R114: Year 1 - 5
B115: Unit of measure | D115: Year 1 | E115: (VAT Excl.) | G115: Year 2 | H115: (VAT Excl.) | J115: Year 3 | K115: (VAT Excl.) | M115: Year 4 | N115: (VAT Excl.) | P115: in | Q115: (VAT Excl.) | R115: (VAT Excl.)
D116: (VAT Excl.) | G116: (VAT Excl.) | J116: (VAT Excl.) | M116: (VAT Excl.) | P116: (VAT Excl.)
A117: Cost of all reagents required per test | B117: Per test | E117: =C117*D117 -> R0.00 | H117: =F117*G117 -> R0.00 | K117: =I117*J117 -> R0.00 | N117: =L117*M117 -> R0.00 | Q117: =O117*P117 -> R0.00 | R117: =E117+H117+K117+N117+Q117 -> R0.00
A118: Subtotal (VAT Excl.) | R118: =SUM(R116:R117) -> R0.00
Q119: VAT | R119: =R118*1.15 -> R0.00
A120: Subtotal (VAT Incl.) | R120: =R118+R119 -> R0.00
A121: C1.a) Reagents (List of all reagents)
A122: Reagent Description | B122: Catalogue No. | C122: Pack Size | D122: Unit of Measure | E122: Tests per Pack | F122: Unit Price (ZAR)
F123: R
F124: R
F125: R
F126: R
F127: R
F128: R
F129: R
F130: R
F131: R
F132: R
A135: Pricing Schedule C2: Quality Control Materials (List of all QC)
A136: Item Description | C136: Estimated Quantity Year 1 | D136: Unit Rate | E136: Total Cost | F136: Estimated Quantity Year 2 | G136: Unit Rate | H136: Total Cost | I136: Estimated Quantity Year 3 | J136: Unit Rate | K136: Total Cost | L136: Estimated Quantity Year 4 | M136: Unit Rate | N136: Total Cost | O136: Estimated Quantity Year 5 | P136: Unit Rate | Q136: Total Cost | R136: Total Annual Cost
D137: in | E137: Year 1 | G137: in | H137: Year 2 | J137: in | K137: Year 3 | M137: in | N137: Year 4 | P137: Year 5 | Q137: Year 5 | R137: Year 1 - 5
B138: Unit of measure | D138: Year 1 | E138: (VAT Excl.) | G138: Year 2 | H138: (VAT Excl.) | J138: Year 3 | K138: (VAT Excl.) | M138: Year 4 | N138: (VAT Excl.) | P138: in | Q138: (VAT Excl.) | R138: (VAT Excl.)
D139: (VAT Excl.) | G139: (VAT Excl.) | J139: (VAT Excl.) | M139: (VAT Excl.) | P139: (VAT Excl.)
A140: Normal Control | B140: each | E140: =C140*D140 -> R0.00 | H140: =F140*G140 -> R0.00 | K140: =I140*J140 -> R0.00 | N140: =L140*M140 -> R0.00 | Q140: =O140*P140 -> R0.00 | R140: =E140+H140+K140+N140+Q140 -> R0.00
A141: Low Control | B141: each | E141: =C141*D141 -> R0.00 | H141: =F141*G141 -> R0.00 | K141: =I141*J141 -> R0.00 | N141: =L141*M141 -> R0.00 | Q141: =O141*P141 -> R0.00 | R141: =E141+H141+K141+N141+Q141 -> R0.00
A142: High Control | B142: each | E142: =C142*D142 -> R0.00 | H142: R0.00 | K142: R0.00 | N142: R0.00 | Q142: R0.00 | R142: R0.00
A143: Subtotal (VAT Excl.) | R143: =SUM(R140:R142) -> R0.00
Q144: VAT | R144: =R143*1.15 -> R0.00
A145: Subtotal (VAT Incl.) | R145: =R143+R144 -> R0.00
A146: Pricing Schedule C2a: Quality Control Materials price breakdown
A147: Item Description | B147: Catalogue No. | C147: Pack size | E147: Unit Price (ZAR)
A152: Pricing Schedule C3: Calibrators (List of all calibrators)
A153: Item Description | C153: Estimated Quantity Year 1 | D153: Unit Rate | E153: Total Cost | F153: Estimated Quantity Year 2 | G153: Unit Rate | H153: Total Cost | I153: Estimated Quantity Year 3 | J153: Unit Rate | K153: Total Cost | L153: Estimated Quantity Year 4 | M153: Unit Rate | N153: Total Cost | O153: Estimated Quantity Year 5 | P153: Unit Rate | Q153: Total Cost | R153: Total Annual Cost
D154: in | E154: Year 1 | G154: in | H154: Year 2 | J154: in | K154: Year 3 | M154: in | N154: Year 4 | P154: Year 5 | Q154: Year 5 | R154: Year 1 - 5
B155: Unit of measure | D155: Year 1 | E155: (VAT Excl.) | G155: Year 2 | H155: (VAT Excl.) | J155: Year 3 | K155: (VAT Excl.) | M155: Year 4 | N155: (VAT Excl.) | P155: in | Q155: (VAT Excl.) | R155: (VAT Excl.)
D156: (VAT Excl.) | G156: (VAT Excl.) | J156: (VAT Excl.) | M156: (VAT Excl.) | P156: (VAT Excl.)
B157: Each | E157: =C157*D157 -> R0.00 | H157: =F157*G157 -> R0.00 | K157: =I157*J157 -> R0.00 | N157: =L157*M157 -> R0.00 | Q157: =O157*P157 -> R0.00 | R157: =E157+H157+K157+N157+Q157 -> R0.00
B158: Each | E158: =C158*D158 -> R0.00 | H158: =F158*G158 -> R0.00 | K158: =I158*J158 -> R0.00 | N158: =L158*M158 -> R0.00 | Q158: =O158*P158 -> R0.00 | R158: =E158+H158+K158+N158+Q158 -> R0.00
B159: Each | E159: =C159*D159 -> R0.00 | H159: R0.00 | K159: R0.00 | N159: R0.00 | Q159: R0.00 | R159: R0.00
A160: Subtotal (VAT Excl.) | R160: =SUM(R157:R159) -> R0.00
Q161: VAT | R161: =R160*0.15 -> R0.00
A162: Subtotal (VAT Incl.) | R162: =R160+R161 -> R0.00
A163: Pricing Schedule C4: Consumables (List of all consumables)
A164: Item Description | C164: Estimated Quantity Year 1 | D164: Unit Rate | E164: Total Cost | F164: Estimated Quantity Year 2 | G164: Unit Rate | H164: Total Cost | I164: Estimated Quantity Year 3 | J164: Unit Rate | K164: Total Cost | L164: Estimated Quantity Year 4 | M164: Unit Rate | N164: Total Cost | O164: Estimated Quantity Year 5 | P164: Unit Rate | Q164: Total Cost | R164: Total Annual Cost
D165: in | E165: Year 1 | G165: in | H165: Year 2 | J165: in | K165: Year 3 | M165: in | N165: Year 4 | P165: Year 5 | Q165: Year 5 | R165: Year 1 - 5
B166: Unit of measure | D166: Year 1 | E166: (VAT Excl.) | G166: Year 2 | H166: (VAT Excl.) | J166: Year 3 | K166: (VAT Excl.) | M166: Year 4 | N166: (VAT Excl.) | P166: in | Q166: (VAT Excl.) | R166: (VAT Excl.)
D167: (VAT Excl.) | G167: (VAT Excl.) | J167: (VAT Excl.) | M167: (VAT Excl.) | P167: (VAT Excl.)
B168: Per test | E168: =C168*D168 -> R0.00 | H168: =F168*G168 -> R0.00 | K168: =I168*J168 -> R0.00 | N168: =L168*M168 -> R0.00 | Q168: =O168*P168 -> R0.00 | R168: =E168+H168+K168+N168+Q168 -> R0.00
E169: =C169*D169 -> R0.00 | H169: =F169*G169 -> R0.00 | K169: =I169*J169 -> R0.00 | N169: =L169*M169 -> R0.00 | Q169: =O169*P169 -> R0.00 | R169: =E169+H169+K169+N169+Q169 -> R0.00
A173: Subtotal (VAT Excl.) | R173: =SUM(R168:R172) -> R0.00
Q174: VAT | R174: =R173*0.15 -> R0.00
A175: Subtotal (VAT Incl.) | R175: =R173+R174 -> R0.00
A176: Pricing Schedule C5: Cost per Reportable Result
A177: Item Description | C177: Estimated Quantity Year 1 | D177: Unit Rate | E177: Total Cost | F177: Estimated Quantity Year 2 | G177: Unit Rate | H177: Total Cost | I177: Estimated Quantity Year 3 | J177: Unit Rate | K177: Total Cost | L177: Estimated Quantity Year 4 | M177: Unit Rate | N177: Total Cost | O177: Estimated Quantity Year 5 | P177: Unit Rate | Q177: Total Cost | R177: Total Annual Cost
D178: in | E178: Year 1 | G178: in | H178: Year 2 | J178: in | K178: Year 3 | M178: in | N178: Year 4 | P178: Year 5 | Q178: Year 5 | R178: Year 1 - 5
B179: Unit of measure | D179: Year 1 | E179: (VAT Excl.) | G179: Year 2 | H179: (VAT Excl.) | J179: Year 3 | K179: (VAT Excl.) | M179: Year 4 | N179: (VAT Excl.) | P179: in | Q179: (VAT Excl.) | R179: (VAT Excl.)
D180: (VAT Excl.) | G180: (VAT Excl.) | J180: (VAT Excl.) | M180: (VAT Excl.) | P180: (VAT Excl.)
A181: Full Blood Count (FBC) | B181: Per result
A182: Differential Count | B182: Per result
A183: Reticulocyte Count | B183: Per result
A184: Heamoglobin | B184: Per result
A185: Platelet Count | B185: Per result
A186: White Blood Cell Count | B186: Per result
A187: Subtotal (VAT Excl.) | R187: =SUM(R185:R186) -> R0.00
Q188: VAT | R188: =R187*0.15 -> R0.00
A189: Total Price (VAT Incl.) | R189: =R187+R188 -> R0.00
A191: Pricing Schedule C6: Service and maintenace costs (Stiplulate the required service interval e.g semi annually/annually)
A192: Item Description | C192: Estimated Quantity Year 1 | D192: Unit Rate | E192: Total Cost | F192: Estimated Quantity Year 2 | G192: Unit Rate | H192: Total Cost | I192: Estimated Quantity Year 3 | J192: Unit Rate | K192: Total Cost | L192: Estimated Quantity Year 4 | M192: Unit Rate | N192: Total Cost | O192: Estimated Quantity Year 5 | P192: Unit Rate | Q192: Total Cost | R192: Total Annual Cost
D193: in | E193: Year 1 | G193: in | H193: Year 2 | J193: in | K193: Year 3 | M193: in | N193: Year 4 | P193: Year 5 | Q193: Year 5 | R193: Year 1 - 5
B194: Unit of measure/interval | D194: Year 1 | E194: (VAT Excl.) | G194: Year 2 | H194: (VAT Excl.) | J194: Year 3 | K194: (VAT Excl.) | M194: Year 4 | N194: (VAT Excl.) | P194: in | Q194: (VAT Excl.) | R194: (VAT Excl.)
D195: (VAT Excl.) | G195: (VAT Excl.) | J195: (VAT Excl.) | M195: (VAT Excl.) | P195: (VAT Excl.)
A196: Comprehensive preventative maintenance contract | E196: =C196*D196 -> R0.00 | H196: =F196*G196 -> R0.00 | K196: =I196*J196 -> R0.00 | N196: =L196*M196 -> R0.00 | Q196: =O196*P196 -> R0.00 | R196: =E196+H196+K196+N196+Q196 -> R0.00
A197: Corrective maintenance and breakdown support | E197: =C197*D197 -> R0.00 | H197: =F197*G197 -> R0.00 | K197: =I197*J197 -> R0.00 | N197: =L197*M197 -> R0.00 | Q197: =O197*P197 -> R0.00 | R197: =E197+H197+K197+N197+Q197 -> R0.00
A198: Subtotal (VAT Excl.) | R198: =SUM(R196:R197) -> R0.00
Q199: VAT | R199: =R198*0.15 -> R0.00
A200: Total Price (VAT Incl.) | R200: =R198+R199 -> R0.00
A201: SECTION D: TRAINING AND APPLICATION SUPPORT (29 Small Laboratories + 5 Medium Laboratories = 34)
A202: Item Description | C202: Estimated Year 1 | D202: Unit Rate | E202: Total Cost | F202: Estimated Year 2 | G202: Unit Rate | H202: Total Cost | I202: Estimated Year 3 | J202: Unit Rate | K202: Total Cost | L202: Estimated Year 4 | M202: Unit Rate | N202: Total Cost | O202: Estimated Year 5 | P202: Unit Rate | Q202: Total Cost | R202: Total Annual Cost
D203: in | E203: Year 1 | G203: in | H203: Year 2 | J203: in | K203: Year 3 | M203: in | N203: Year 4 | P203: Year 5 | Q203: Year 5 | R203: Year 1 - 5
B204: Unit of measure | D204: Year 1 | E204: (VAT Excl.) | G204: Year 2 | H204: (VAT Excl.) | J204: Year 3 | K204: (VAT Excl.) | M204: Year 4 | N204: (VAT Excl.) | P204: in | Q204: (VAT Excl.) | R204: (VAT Excl.)
D205: (VAT Excl.) | G205: (VAT Excl.) | J205: (VAT Excl.) | M205: (VAT Excl.) | P205: (VAT Excl.)
A206: Initial Operator Training | B206: Per session | C206: 34 | E206: =C206*D206 -> R0.00 | F206: 0 | H206: =F206*G206 -> R0.00 | I206: 0 | K206: =I206*J206 -> R0.00 | L206: 0 | N206: =L206*M206 -> R0.00 | O206: 0 | Q206: =O206*P206 -> R0.00 | R206: =E206+H206+K206+N206+Q206 -> R0.00
A207: Refresher Training (per session; (starting from year 2) | B207: Per session | C207: 0 | E207: =C207*D207 -> R0.00 | F207: 34 | H207: =F207*G207 -> R0.00 | I207: 34 | K207: =I207*J207 -> R0.00 | L207: 34 | N207: =L207*M207 -> R0.00 | O207: 34 | Q207: =O207*P207 -> R0.00 | R207: =E207+H207+K207+N207+Q207 -> R0.00
A208: Super User Training | B208: Per session | C208: 34 | E208: R0.00 | F208: 0 | H208: R0.00 | I208: 0 | K208: R0.00 | L208: 0 | N208: R0.00 | O208: 0 | Q208: R0.00 | R208: R0.00
A209: Subtotal (VAT Excl.) | R209: =SUM(R205:R208) -> R0.00
A210: VAT (15%) | R210: =R209*1.15 -> R0.00
A211: Total Price (VAT Incl.) | R211: =R209+R210 -> R0.00
A213: Summary of the pricing scehdule | I213: Bid Amount
A214: Pricing Schedule A | B214: Analyzer Placement | I214: =R19 -> R0.00
A215: Pricing Schedule B1 | B215: Reagents | I215: =R30 -> R0.00
A216: Pricing Schedule B2 | B216: Quality Control Materials | I216: =R55 -> R0.00
A217: Pricing Schedule B3 | B217: Calibrators | I217: =R72 -> R0.00
A218: Pricing Schedule B4 | B218: Consumables | I218: =R85 -> R0.00
A219: Pricing Schedule B5 | B219: Cost per Reportable Result | I219: =R99 -> R0.00
A220: Pricing Schedule B6 | B220: Service and maintenace costs | I220: =R109 -> R0.00
A221: Pricing Schedule C1 | B221: Reagents | I221: =R120 -> R0.00
A222: Pricing Schedule C2 | B222: Quality Control Materials | I222: =R145 -> R0.00
A223: Pricing Schedule C3 | B223: Calibrators | I223: =R162 -> R0.00
... 5 more rows

Sheet Sheet2 (hidden)
A5: 974513 | B5: 81209 | C5: =+B5*12 -> 974508
E6: 17.69 | L6: 90.94 | M6: 938 | N6: =+M6*L6 -> 85301.72
E7: 10.88 | M7: 12
E8: 62.37 | M8: =+M6*M7 -> 11256
E9: =SUM(E6:E8) -> 90.94 | F9: 938 | G9: =+F9*E9 -> 85301.72 | H9: 12 | I9: =+G9*H9 -> 1023620.64 | M9: 5
G10: =+B5 -> 81209 | M10: =+M8*M9 -> 56280
G11: =+G10-G9 -> -4092.72 | H11: 12 | I11: =+G11*H11 -> -49112.64 | M11: =+M10*E9 -> 5118103.2 | N11: 5122360 | O11: =+N11-M11 -> 4256.8 | P11: =+O11/N11 -> 0.0008310232002
R12: =4092*2.5% -> 102.3
N13: 938 | R13: 4092
C14: 974513 | D14: 998876 | E14: =+D14-C14 -> 24363 | F14: =+E14/C14 -> 0.03 | N14: 60 | R14: =+R13+R12 -> 4194.3
N15: =+N14*N13 -> 56280 | O15: 56330
C16: 1023848 | D16: =+D14 -> 998876 | E16: =+D16-C16 -> -24972 | F16: =+E16/C16 -> (0.02) | N16: =+N15-O15 -> -50
K17: 2.50%
C18: 974513 | E18: =+C18 -> 974513 | G18: 81209 | J18: =+G18 -> 81209 | K18: =+J18*$K$17 -> 2030.225 | L18: =+K18+J18 -> 83239.225
B19: =+C18/C19-1 -> -2% | C19: 998876 | D19: =+C19/C18 -> 1.02500018 | F19: =+G18/G19-1 -> -2% | G19: 83240 | H19: =+G19/G18 -> 102.5% | J19: =+G19 -> 83240 | K19: =+J19*$K$17 -> 2081 | L19: =+K19+J19 -> 85321 | P19: 938 | Q19: 12 | R19: =+Q19*P19 -> 11256 | S19: 5 | T19: =+R19*S19 -> 56280
B20: =+C19/C20-1 -> -2% | C20: 1023848 | D20: =+C20/C19 -> 1.0250001 | F20: =+G19/G20-1 -> -2% | G20: 85321 | H20: =+G20/G19 -> 102.5% | J20: =+G20 -> 85321 | K20: =+J20*$K$17 -> 2133.025 | L20: =+K20+J20 -> 87454.025
B21: =+C20/C21-1 -> -2% | C21: 1049444 | D21: =+C21/C20 -> 1.024999805 | F21: =+G20/G21-1 -> -2% | G21: 87454 | H21: =+G21/G20 -> 102.5% | J21: =+G21 -> 87454 | K21: =+J21*$K$17 -> 2186.35 | L21: =+K21+J21 -> 89640.35
B22: =+C21/C22-1 -> -2% | C22: 1075680 | D22: =+C22/C21 -> 1.024999905 | F22: =+G21/G22-1 -> -2% | G22: 89640 | H22: =+G22/G21 -> 102.5% | J22: =+G22 -> 89640 | K22: =+J22*$K$17 -> 2241 | L22: =+K22+J22 -> 91881
C24: =+J18 -> 81209 | D24: =+C24/$E$9 -> 892.9953816
C25: =+J19 -> 83240 | D25: =+C25/$E$9 -> 915.3287882 | E25: =+D25/D24 -> 1.025009543
C26: =+J20 -> 85321 | D26: =+C26/$E$9 -> 938.2120079 | E26: =+D26/D25 -> 1.025
C27: =+J21 -> 87454 | D27: =+C27/$E$9 -> 961.6670332 | E27: =+D27/D26 -> 1.024999707
C28: =+J22 -> 89640 | D28: =+C28/$E$9 -> 985.7048603 | E28: =+D28/D27 -> 1.024995998
